[Event "Pervenstvo PFO 2023_Y19_Rapid"]
[Site "Samara region, Russia"]
[Date "2023.11.11"]
[Round "2.6"]
[White "Galdeev, Lev"]
[Black "Babkov, Timofey"]
[Result "0-1"]
[TimeControl "10:5"]
[WhiteFideId "55780628"]
[BlackFideId "54135931"]
[WhiteElo "1336"]
[BlackElo "1855"]

1. e4 {[%clk 00:10:09]} c5 {[%clk 00:10:09]} {[%emt 00:00:02]} 2. Nc3 {[%clk
00:10:12]} {[%emt 00:00:01]} e6 {[%clk 00:10:13]} {[%emt 00:00:02]} 3. d4
{[%clk 00:10:16]} cxd4 {[%clk 00:10:14]} {[%emt 00:00:04]} 4. Qxd4 {[%clk
00:10:20]} Nc6 {[%clk 00:10:16]} {[%emt 00:00:03]} 5. Qd3 {[%clk 00:10:24]}
{[%emt 00:00:01]} Nf6 {[%clk 00:10:19]} {[%emt 00:00:02]} 6. Bf4 {[%clk
00:10:27]} {[%emt 00:00:02]} Bb4 {[%clk 00:09:54]} {[%emt 00:00:30]} 7. Nge2
{[%clk 00:10:31]} {[%emt 00:00:02]} d5 {[%clk 00:09:50]} {[%emt 00:00:08]} 8.
O-O-O {[%clk 00:10:02]} {[%emt 00:00:34]} dxe4 {[%clk 00:09:04]} {[%emt
00:00:51]} 9. Nxe4 {[%clk 00:09:54]} {[%emt 00:00:12]} Qxd3 {[%clk 00:09:04]}
{[%emt 00:00:06]} 10. Nxf6+ {[%clk 00:09:57]} {[%emt 00:00:02]} gxf6 {[%clk
00:09:07]} {[%emt 00:00:02]} 11. Rxd3 {[%clk 00:09:59]} {[%emt 00:00:02]} e5
{[%clk 00:09:10]} {[%emt 00:00:03]} 12. Be3 {[%clk 00:09:45]} {[%emt 00:00:19]}
Bf5 {[%clk 00:09:10]} {[%emt 00:00:05]} 13. Rd1 {[%clk 00:09:48]} {[%emt
00:00:02]} Rc8 {[%clk 00:09:10]} {[%emt 00:00:05]} 14. Ng3 {[%clk 00:09:46]}
{[%emt 00:00:07]} Bg6 {[%clk 00:09:00]} {[%emt 00:00:15]} 15. Bd3 {[%clk
00:09:47]} {[%emt 00:00:03]} Ne7 {[%clk 00:08:21]} {[%emt 00:00:44]} 16. a3
{[%clk 00:09:33]} {[%emt 00:00:20]} Ba5 {[%clk 00:08:17]} {[%emt 00:00:09]} 17.
h4 {[%clk 00:09:20]} {[%emt 00:00:18]} Bxd3 {[%clk 00:07:38]} {[%emt 00:00:44]}
18. Rxd3 {[%clk 00:09:23]} {[%emt 00:00:01]} f5 {[%clk 00:07:42]} 19. Bg5
{[%clk 00:09:21]} {[%emt 00:00:07]} Bb6 {[%clk 00:06:05]} {[%emt 00:01:43]} 20.
Rhd1 {[%clk 00:08:36]} {[%emt 00:00:49]} Rd8 {[%clk 00:03:37]} {[%emt
00:02:35]} 21. Rxd8+ {[%clk 00:08:11]} {[%emt 00:00:29]} Bxd8 {[%clk 00:03:40]}
{[%emt 00:00:02]} 22. Nxf5 {[%emt 00:01:34]} Nc6 23. Nd6+ {[%clk 00:06:13]}
{[%emt 00:00:33]} Kf8 {[%clk 00:03:45]} {[%emt 00:00:05]} 24. Bh6+ {[%clk
00:05:45]} {[%emt 00:00:33]} Ke7 {[%clk 00:03:31]} {[%emt 00:00:18]} 25. Nxb7
{[%clk 00:05:38]} {[%emt 00:00:13]} Bb6 {[%clk 00:03:34]} {[%emt 00:00:02]} 26.
Rd2 {[%clk 00:04:21]} {[%emt 00:01:21]} Nd4 {[%clk 00:03:12]} {[%emt 00:00:28]}
27. Bg7 {[%clk 00:03:56]} {[%emt 00:00:29]} Rc8 {[%clk 00:02:21]} {[%emt
00:00:56]} 28. Kb1 {[%clk 00:03:48]} {[%emt 00:00:14]} f6 {[%clk 00:02:22]}
{[%emt 00:00:04]} 29. c3 {[%clk 00:02:49]} {[%emt 00:01:03]} Nf5 {[%clk
00:02:26]} {[%emt 00:00:01]} 30. Bxf6+ {[%clk 00:02:43]} {[%emt 00:00:11]} Kxf6
{[%clk 00:02:31]} 31. Nd6 {[%clk 00:02:46]} {[%emt 00:00:02]} Nxd6 {[%clk
00:01:10]} {[%emt 00:01:26]} 32. Rxd6+ {[%clk 00:02:49]} {[%emt 00:00:01]} Ke7
{[%clk 00:01:14]} 33. Rh6 {[%clk 00:02:40]} {[%emt 00:00:13]} Rg8 {[%clk
00:01:10]} {[%emt 00:00:10]} 34. Rxh7+ {[%clk 00:02:39]} {[%emt 00:00:06]} Kf6
{[%clk 00:01:09]} {[%emt 00:00:03]} 35. Rh6+ {[%clk 00:01:49]} {[%emt
00:00:59]} Kf5 {[%clk 00:01:02]} {[%emt 00:00:11]} 36. Rh5+ {[%clk 00:01:27]}
{[%emt 00:00:28]} Ke6 {[%clk 00:00:53]} {[%emt 00:00:15]} 37. Rh6+ {[%clk
00:01:30]} {[%emt 00:00:02]} Kd5 {[%clk 00:00:57]} {[%emt 00:00:01]} 38. Rf6
{[%clk 00:00:30]} {[%emt 00:01:04]} Rxg2 {[%clk 00:00:56]} {[%emt 00:00:06]} 39.
h5 {[%clk 00:00:32]} {[%emt 00:00:03]} Rxf2 {[%clk 00:00:43]} {[%emt 00:00:19]}
40. Rxf2 {[%clk 00:00:24]} {[%emt 00:00:13]} Bxf2 {[%clk 00:00:47]} {[%emt
00:00:01]} 41. Kc2 {[%clk 00:00:27]} {[%emt 00:00:02]} Ke4 {[%clk 00:00:44]}
{[%emt 00:00:08]} 42. h6 {[%clk 00:00:28]} {[%emt 00:00:04]} Bh4 {[%clk
00:00:48]} 43. h7 {[%clk 00:00:24]} {[%emt 00:00:08]} Bf6 {[%clk 00:00:52]}
{[%emt 00:00:01]} 44. Kd2 {[%clk 00:00:28]} Kf3 {[%clk 00:00:56]} 45. c4 {[%emt
00:00:20]} e4 46. c5 {[%clk 00:00:08]} {[%emt 00:00:04]} e3+ {[%clk 00:00:59]}
{[%emt 00:00:02]} 0-1

[Event "Pervenstvo PFO 2023_Y19_Rapid"]
[Site "Samara region, Russia"]
[Date "2023.11.11"]
[Round "2.7"]
[White "Davydov, Dmitriy"]
[Black "Pukhov, Ivan"]
[Result "1/2-1/2"]
[TimeControl "10:5"]
[WhiteFideId "54185580"]
[BlackFideId "34301895"]
[WhiteElo "1573"]
[BlackElo "1955"]

1. Nf3 {[%clk 00:10:06]} {[%emt 00:00:03]} Nf6 {[%clk 00:10:12]} {[%emt
00:00:03]} 2. g3 {[%clk 00:10:09]} {[%emt 00:00:02]} g6 {[%clk 00:10:11]}
{[%emt 00:00:06]} 3. Bg2 {[%emt 00:00:01]} Bg7 4. O-O {[%clk 00:10:15]} {[%emt
00:00:02]} O-O {[%clk 00:10:19]} {[%emt 00:00:02]} 5. d3 {[%clk 00:10:16]}
{[%emt 00:00:04]} d5 {[%clk 00:10:19]} {[%emt 00:00:05]} 6. c4 {[%clk
00:09:59]} {[%emt 00:00:21]} c5 {[%clk 00:10:07]} {[%emt 00:00:17]} 7. Nbd2
{[%clk 00:08:57]} {[%emt 00:01:07]} Nc6 {[%clk 00:09:47]} {[%emt 00:00:26]} 8.
Nb3 {[%clk 00:08:38]} {[%emt 00:00:23]} b6 {[%clk 00:09:31]} {[%emt 00:00:22]}
9. Bd2 {[%clk 00:07:46]} {[%emt 00:00:56]} Bb7 {[%clk 00:09:20]} {[%emt
00:00:17]} 10. Re1 {[%clk 00:07:32]} {[%emt 00:00:19]} dxc4 {[%clk 00:07:17]}
{[%emt 00:02:07]} 11. dxc4 {[%clk 00:07:35]} {[%emt 00:00:02]} Ne4 {[%clk
00:07:18]} {[%emt 00:00:04]} 12. Qc2 {[%clk 00:07:08]} {[%emt 00:00:32]} Nxd2
{[%clk 00:07:17]} {[%emt 00:00:06]} 13. Nbxd2 {[%clk 00:07:07]} {[%emt
00:00:06]} Qc7 {[%clk 00:06:49]} {[%emt 00:00:33]} 14. Rad1 {[%clk 00:07:00]}
{[%emt 00:00:12]} Rfd8 {[%clk 00:06:17]} {[%emt 00:00:38]} 15. a3 {[%clk
00:05:32]} {[%emt 00:01:32]} Rac8 {[%clk 00:06:17]} {[%emt 00:00:05]} 16. Nb1
{[%emt 00:00:47]} Nd4 {[%clk 00:05:49]} {[%emt 00:00:29]} 17. Nxd4 {[%clk
00:04:56]} {[%emt 00:00:03]} cxd4 {[%clk 00:05:46]} {[%emt 00:00:08]} 18. Bxb7
{[%clk 00:04:39]} {[%emt 00:00:22]} Qxb7 {[%clk 00:05:51]} {[%emt 00:00:01]} 19.
Rd3 {[%clk 00:04:19]} {[%emt 00:00:25]} Qc6 {[%clk 00:05:05]} {[%emt 00:00:50]}
20. Nd2 {[%clk 00:03:48]} {[%emt 00:00:35]} b5 {[%clk 00:03:53]} {[%emt
00:01:18]} 21. b3 {[%clk 00:03:51]} {[%emt 00:00:02]} e5 {[%clk 00:03:23]}
{[%emt 00:00:35]} 22. e4 {[%clk 00:03:42]} {[%emt 00:00:14]} dxe3 {[%clk
00:03:06]} {[%emt 00:00:22]} 23. Rexe3 {[%clk 00:03:28]} {[%emt 00:00:19]} Rxd3
{[%clk 00:01:51]} {[%emt 00:01:19]} 24. Qxd3 {[%clk 00:03:19]} {[%emt
00:00:14]} a6 {[%clk 00:01:01]} {[%emt 00:00:56]} 25. Re1 {[%clk 00:02:26]}
{[%emt 00:00:58]} h5 {[%clk 00:00:53]} {[%emt 00:00:13]} 26. Rc1 {[%clk
00:02:08]} {[%emt 00:00:23]} h4 {[%clk 00:00:21]} {[%emt 00:00:37]} 27. Qf3
{[%clk 00:01:40]} {[%emt 00:00:33]} Bh6 {[%clk 00:00:19]} {[%emt 00:00:08]} 28.
Qxc6 {[%clk 00:00:55]} {[%emt 00:00:50]} Rxc6 {[%clk 00:00:24]} 29. Rc2 {[%clk
00:00:58]} Bxd2 {[%clk 00:00:25]} {[%emt 00:00:04]} 30. Rxd2 {[%clk 00:01:03]}
bxc4 {[%clk 00:00:29]} {[%emt 00:00:02]} 31. Rc2 {[%clk 00:00:51]} {[%emt
00:00:17]} hxg3 {[%clk 00:00:21]} {[%emt 00:00:12]} 32. hxg3 {[%clk 00:00:51]}
{[%emt 00:00:05]} Kf8 {[%clk 00:00:07]} {[%emt 00:00:19]} 33. Rxc4 {[%clk
00:00:22]} {[%emt 00:00:34]} Rxc4 {[%clk 00:00:11]} 34. bxc4 {[%clk 00:00:26]}
{[%emt 00:00:02]} Ke7 {[%clk 00:00:16]} 35. Kf1 {[%clk 00:00:30]} Kd6 {[%clk
00:00:16]} {[%emt 00:00:05]} 36. Ke2 {[%clk 00:00:34]} Kc5 {[%clk 00:00:19]}
{[%emt 00:00:03]} 37. Kd3 {[%clk 00:00:38]} f5 {[%clk 00:00:18]} {[%emt
00:00:07]} 38. f3 {[%clk 00:00:27]} {[%emt 00:00:15]} a5 {[%clk 00:00:20]}
{[%emt 00:00:03]} 39. g4 {[%clk 00:00:18]} {[%emt 00:00:13]} fxg4 {[%clk
00:00:08]} {[%emt 00:00:17]} 40. fxg4 {[%clk 00:00:22]} {[%emt 00:00:01]} g5
{[%clk 00:00:10]} {[%emt 00:00:03]} 41. Ke4 {[%clk 00:00:20]} {[%emt 00:00:07]}
Kxc4 {[%clk 00:00:14]} {[%emt 00:00:01]} 42. Kxe5 {[%clk 00:00:24]} Kb3 {[%clk
00:00:17]} {[%emt 00:00:01]} 43. Kf5 {[%clk 00:00:28]} {[%emt 00:00:02]} Kxa3
{[%clk 00:00:21]} {[%emt 00:00:01]} 44. Kxg5 {[%clk 00:00:32]} Kb4 {[%clk
00:00:18]} {[%emt 00:00:07]} 45. Kf5 {[%clk 00:00:27]} {[%emt 00:00:10]} a4
{[%clk 00:00:22]} {[%emt 00:00:03]} 46. g5 {[%clk 00:00:31]} a3 {[%clk
00:00:22]} {[%emt 00:00:05]} 47. g6 {[%clk 00:00:35]} a2 {[%clk 00:00:23]}
{[%emt 00:00:04]} 48. g7 {[%clk 00:00:38]} {[%emt 00:00:02]} a1=Q {[%clk
00:00:26]} {[%emt 00:00:02]} 49. g8=Q {[%clk 00:00:40]} {[%emt 00:00:03]} Qf1+
{[%clk 00:00:23]} {[%emt 00:00:07]} 50. Kg6 {[%clk 00:00:43]} {[%emt 00:00:02]}
Qg2+ {[%clk 00:00:26]} {[%emt 00:00:03]} 51. Kf7 {[%clk 00:00:47]} {[%emt
00:00:02]} Qf3+ {[%clk 00:00:29]} {[%emt 00:00:01]} 52. Ke7 {[%clk 00:00:47]}
{[%emt 00:00:04]} Qb7+ {[%clk 00:00:24]} {[%emt 00:00:11]} 53. Kf6 {[%clk
00:00:50]} {[%emt 00:00:02]} Qf3+ {[%clk 00:00:10]} {[%emt 00:00:20]} 54. Ke7
{[%clk 00:00:54]} {[%emt 00:00:02]} Qe4+ {[%clk 00:00:13]} {[%emt 00:00:01]} 55.
Qe6 {[%clk 00:00:56]} {[%emt 00:00:02]} Qxe6+ {[%clk 00:00:17]} {[%emt
00:00:02]} 56. Kxe6 {[%clk 00:01:01]} 1/2-1/2

[Event "Pervenstvo PFO 2023_Y19_Rapid"]
[Site "Samara region, Russia"]
[Date "2023.11.11"]
[Round "2.8"]
[White "Evtukhov, Lev"]
[Black "Musin, Ramazan"]
[Result "1-0"]
[TimeControl "10:5"]
[WhiteFideId "44173210"]
[BlackFideId "24209562"]
[WhiteElo "1923"]
[BlackElo "1318"]

1. d4 {[%emt 00:01:01]} Nf6 {[%emt 00:00:02]} 2. c4 {[%emt 00:00:01]} e6 3. Nc3
{[%emt 00:00:02]} Bb4 {[%emt 00:00:02]} 4. Bd2 {[%emt 00:00:02]} b6 {[%emt
00:00:05]} 5. Nf3 {[%emt 00:00:02]} Bb7 {[%emt 00:00:01]} 6. e3 O-O {[%emt
00:00:06]} 7. Be2 {[%emt 00:00:02]} d6 {[%emt 00:00:07]} 8. O-O {[%emt
00:00:03]} Nbd7 {[%emt 00:00:03]} 9. a3 {[%emt 00:00:02]} Bxc3 {[%emt
00:00:02]} 10. Bxc3 Ne4 11. Be1 f5 {[%emt 00:00:04]} 12. d5 {[%emt 00:00:18]}
e5 {[%emt 00:00:19]} 13. Nd2 {[%emt 00:00:02]} Ndc5 {[%emt 00:00:36]} 14. f3
{[%emt 00:01:21]} Nxd2 {[%emt 00:00:30]} 15. Bxd2 {[%emt 00:00:04]} Rf6 {[%emt
00:01:23]} 16. b4 {[%emt 00:00:06]} Nd7 17. Bc3 {[%emt 00:00:55]} f4 {[%emt
00:01:10]} 18. exf4 {[%emt 00:00:05]} Rxf4 {[%emt 00:00:02]} 19. Bd3 {[%emt
00:00:54]} Ba6 {[%emt 00:00:22]} 20. Qe2 {[%emt 00:00:14]} Qe7 {[%emt
00:00:45]} 21. Bd2 {[%emt 00:01:01]} Rf7 {[%emt 00:00:02]} 22. Qe4 {[%emt
00:00:10]} Nf6 {[%emt 00:00:10]} 23. Qh4 {[%emt 00:00:02]} Raf8 {[%emt
00:01:10]} 24. Rae1 {[%emt 00:00:19]} Bc8 {[%emt 00:00:02]} 25. Bg5 {[%emt
00:00:32]} h6 {[%emt 00:00:23]} 26. Bd2 {[%emt 00:00:19]} Nh7 {[%emt 00:00:16]}
27. Qg3 {[%emt 00:00:21]} Kh8 {[%emt 00:00:52]} 28. f4 {[%emt 00:01:49]} Bf5
{[%emt 00:01:23]} 29. Bxf5 {[%emt 00:00:03]} Rxf5 {[%emt 00:00:03]} 30. fxe5
{[%emt 00:00:03]} Rxf1+ {[%emt 00:00:01]} 31. Rxf1 Rxf1+ {[%emt 00:00:07]} 32.
Kxf1 {[%emt 00:00:02]} dxe5 {[%emt 00:00:24]} 33. Bc3 {[%emt 00:00:01]} Qf7+
{[%emt 00:00:12]} 34. Qf3 {[%emt 00:02:22]} Qf4 35. Qxf4 {[%emt 00:00:06]} exf4
{[%emt 00:00:02]} 36. Be5 Kg8 {[%emt 00:00:10]} 37. Bxf4 {[%emt 00:00:11]} 1-0

[Event "Pervenstvo PFO 2023_Y19_Rapid"]
[Site "Samara region, Russia"]
[Date "2023.11.11"]
[Round "2.9"]
[White "Banyaev, Ivan S"]
[Black "Azizyan, Levon"]
[Result "0-1"]
[TimeControl "10:5"]
[WhiteFideId "55619479"]
[BlackFideId "44151888"]
[WhiteElo "1061"]
[BlackElo "1940"]

1. d4 {[%clk 00:10:08]} {[%emt 00:00:02]} Nf6 {[%clk 00:10:09]} {[%emt
00:00:02]} 2. c4 {[%clk 00:10:11]} {[%emt 00:00:02]} g6 {[%clk 00:10:07]}
{[%emt 00:00:06]} 3. Nc3 {[%clk 00:10:15]} {[%emt 00:00:02]} d5 {[%clk
00:10:11]} 4. cxd5 {[%clk 00:10:17]} {[%emt 00:00:04]} Nxd5 {[%clk 00:10:15]} 5.
e4 {[%clk 00:10:21]} {[%emt 00:00:01]} Nxc3 {[%clk 00:10:19]} {[%emt 00:00:01]}
6. bxc3 {[%clk 00:10:24]} {[%emt 00:00:01]} Bg7 {[%clk 00:10:23]} 7. Be3 {[%clk
00:10:27]} {[%emt 00:00:03]} c5 {[%clk 00:10:27]} {[%emt 00:00:02]} 8. Bb5+
{[%clk 00:10:29]} {[%emt 00:00:03]} Nc6 {[%clk 00:10:23]} {[%emt 00:00:09]} 9.
Ne2 {[%clk 00:10:28]} {[%emt 00:00:06]} O-O {[%clk 00:10:25]} {[%emt 00:00:03]}
10. O-O {[%clk 00:10:30]} {[%emt 00:00:02]} cxd4 {[%clk 00:09:35]} {[%emt
00:00:55]} 11. cxd4 {[%clk 00:10:31]} {[%emt 00:00:04]} Bg4 {[%clk 00:09:38]}
{[%emt 00:00:01]} 12. f3 {[%clk 00:10:30]} {[%emt 00:00:07]} Bd7 {[%clk
00:09:41]} {[%emt 00:00:02]} 13. Rc1 {[%clk 00:10:24]} {[%emt 00:00:11]} a6
{[%clk 00:09:21]} {[%emt 00:00:25]} 14. Bc4 {[%clk 00:10:22]} {[%emt 00:00:06]}
Rc8 {[%clk 00:09:20]} {[%emt 00:00:06]} 15. Kh1 {[%clk 00:10:16]} {[%emt
00:00:11]} b5 {[%clk 00:09:04]} {[%emt 00:00:21]} 16. Bb3 {[%clk 00:10:12]}
{[%emt 00:00:09]} Na5 {[%clk 00:08:57]} {[%emt 00:00:13]} 17. Qd2 {[%clk
00:10:07]} {[%emt 00:00:11]} Nxb3 {[%clk 00:08:15]} {[%emt 00:00:47]} 18. axb3
{[%clk 00:10:08]} {[%emt 00:00:03]} e6 {[%clk 00:07:47]} {[%emt 00:00:33]} 19.
Rxc8 {[%clk 00:10:01]} {[%emt 00:00:13]} Bxc8 {[%clk 00:07:51]} 20. Rc1 {[%clk
00:09:55]} {[%emt 00:00:11]} Bb7 {[%clk 00:07:38]} {[%emt 00:00:19]} 21. Bg5
{[%clk 00:09:47]} {[%emt 00:00:11]} Qd7 {[%clk 00:06:49]} {[%emt 00:00:55]} 22.
Bf4 {[%clk 00:09:38]} {[%emt 00:00:14]} Rc8 {[%clk 00:06:39]} {[%emt 00:00:15]}
23. Rxc8+ {[%clk 00:09:27]} {[%emt 00:00:16]} Qxc8 {[%clk 00:06:42]} {[%emt
00:00:02]} 24. d5 {[%clk 00:09:15]} {[%emt 00:00:17]} exd5 {[%clk 00:03:37]}
{[%emt 00:03:10]} 25. exd5 {[%clk 00:09:16]} {[%emt 00:00:05]} Qd7 {[%clk
00:03:12]} {[%emt 00:00:30]} 26. d6 {[%clk 00:09:12]} {[%emt 00:00:09]} h5
{[%clk 00:03:16]} 27. Qc1 {[%clk 00:08:55]} {[%emt 00:00:22]} Bc6 {[%clk
00:03:11]} {[%emt 00:00:10]} 28. Qa3 {[%clk 00:08:43]} {[%emt 00:00:18]} Qb7
{[%clk 00:03:15]} {[%emt 00:00:01]} 29. Qa5 {[%clk 00:08:34]} {[%emt 00:00:14]}
Bxf3 {[%clk 00:02:30]} {[%emt 00:00:50]} 30. Qc7 {[%clk 00:07:51]} {[%emt
00:00:47]} Bxg2+ {[%clk 00:02:29]} {[%emt 00:00:06]} 31. Kg1 {[%clk 00:07:54]}
{[%emt 00:00:03]} Qxc7 {[%clk 00:02:28]} {[%emt 00:00:06]} 32. dxc7 {[%clk
00:07:56]} {[%emt 00:00:03]} Bb7 {[%clk 00:02:32]} 33. Nc1 {[%clk 00:07:39]}
{[%emt 00:00:22]} Kf8 {[%clk 00:02:18]} {[%emt 00:00:19]} 34. Nd3 {[%clk
00:07:33]} {[%emt 00:00:10]} Ke7 {[%clk 00:02:12]} {[%emt 00:00:12]} 35. Nc5
{[%clk 00:07:32]} {[%emt 00:00:06]} Bd4+ {[%clk 00:02:16]} 0-1

[Event "Pervenstvo PFO 2023_Y19_Rapid"]
[Site "Samara region, Russia"]
[Date "2023.11.11"]
[Round "3.1"]
[White "Babkov, Timofey"]
[Black "Konstantinov, Nikita"]
[Result "1-0"]
[TimeControl "10:5"]
[WhiteFideId "54135931"]
[BlackFideId "44165250"]
[WhiteElo "1855"]
[BlackElo "2074"]

1. e4 {[%clk 00:10:09]} e5 {[%clk 00:10:09]} {[%emt 00:00:02]} 2. Nf3 {[%clk
00:10:12]} {[%emt 00:00:02]} Nc6 {[%clk 00:10:13]} {[%emt 00:00:02]} 3. Bc4
{[%clk 00:10:16]} Bc5 {[%clk 00:10:16]} {[%emt 00:00:02]} 4. c3 {[%clk
00:10:20]} {[%emt 00:00:01]} Nf6 {[%clk 00:10:13]} {[%emt 00:00:08]} 5. d3
{[%clk 00:10:24]} O-O {[%clk 00:10:12]} {[%emt 00:00:06]} 6. Nbd2 {[%clk
00:10:26]} {[%emt 00:00:03]} d6 {[%clk 00:10:09]} {[%emt 00:00:08]} 7. h3
{[%clk 00:10:26]} {[%emt 00:00:05]} a6 {[%clk 00:10:10]} {[%emt 00:00:04]} 8.
Nf1 {[%clk 00:10:27]} {[%emt 00:00:03]} Na5 {[%clk 00:10:05]} {[%emt 00:00:11]}
9. Bb3 {[%clk 00:10:28]} {[%emt 00:00:04]} Nxb3 {[%emt 00:00:04]} 10. axb3
{[%clk 00:10:22]} {[%emt 00:00:09]} Be6 {[%clk 00:09:47]} {[%emt 00:00:25]} 11.
Ng3 {[%clk 00:10:17]} {[%emt 00:00:09]} d5 {[%clk 00:09:34]} {[%emt 00:00:19]}
12. Nxe5 {[%clk 00:09:51]} {[%emt 00:00:32]} dxe4 {[%clk 00:09:17]} {[%emt
00:00:22]} 13. d4 {[%clk 00:07:35]} {[%emt 00:02:21]} Bd6 {[%clk 00:08:49]}
{[%emt 00:00:33]} 14. Bg5 {[%clk 00:07:38]} {[%emt 00:00:02]} Bxe5 {[%clk
00:07:16]} {[%emt 00:01:38]} 15. dxe5 {[%clk 00:07:41]} {[%emt 00:00:02]} Qxd1+
{[%clk 00:07:19]} {[%emt 00:00:02]} 1-0

[Event "Pervenstvo PFO 2023_Y19_Rapid"]
[Site "Samara region, Russia"]
[Date "2023.11.11"]
[Round "3.2"]
[White "Ivanov, Matvei"]
[Black "Tarasenko, Iaroslav"]
[Result "1/2-1/2"]
[TimeControl "10:5"]
[WhiteFideId "54131987"]
[BlackFideId "44196008"]
[WhiteElo "1918"]
[BlackElo "2080"]

1. Nf3 {[%clk 00:10:09]} Nf6 {[%clk 00:10:10]} 2. g3 {[%clk 00:10:14]} e6
{[%clk 00:10:14]} {[%emt 00:00:01]} 3. Bg2 {[%clk 00:10:17]} d5 {[%clk
00:10:17]} {[%emt 00:00:03]} 4. O-O {[%clk 00:10:19]} {[%emt 00:00:03]} Be7
{[%clk 00:10:21]} 5. b3 {[%clk 00:10:20]} {[%emt 00:00:04]} O-O {[%clk
00:10:18]} {[%emt 00:00:08]} 6. Bb2 {[%clk 00:10:25]} b6 {[%clk 00:10:13]}
{[%emt 00:00:12]} 7. c4 {[%clk 00:10:27]} {[%emt 00:00:02]} Bb7 {[%clk
00:10:17]} 8. cxd5 {[%clk 00:10:22]} {[%emt 00:00:11]} Nxd5 {[%clk 00:10:21]}
{[%emt 00:00:01]} 9. Nc3 {[%clk 00:10:26]} c5 {[%clk 00:10:21]} {[%emt
00:00:04]} 10. Nxd5 {[%clk 00:10:24]} {[%emt 00:00:07]} Bxd5 {[%clk 00:10:25]}
{[%emt 00:00:01]} 11. Qc2 {[%clk 00:10:28]} Nc6 {[%clk 00:10:20]} {[%emt
00:00:10]} 12. a3 {[%clk 00:09:46]} {[%emt 00:00:48]} Na5 {[%clk 00:10:17]}
{[%emt 00:00:08]} 13. b4 {[%clk 00:09:50]} {[%emt 00:00:02]} cxb4 {[%clk
00:10:07]} {[%emt 00:00:14]} 14. axb4 {[%clk 00:09:54]} Rc8 {[%clk 00:08:56]}
{[%emt 00:01:16]} 15. Qd3 {[%clk 00:08:54]} {[%emt 00:01:04]} Nc4 {[%clk
00:08:16]} {[%emt 00:00:46]} 16. Bc3 {[%clk 00:08:48]} {[%emt 00:00:11]} Qc7
{[%clk 00:07:57]} {[%emt 00:00:24]} 17. Rfc1 {[%clk 00:07:44]} {[%emt
00:01:08]} Rfd8 {[%clk 00:07:57]} {[%emt 00:00:05]} 18. Qb1 {[%clk 00:07:27]}
{[%emt 00:00:22]} Qb8 {[%clk 00:07:41]} {[%emt 00:00:22]} 19. d3 {[%clk
00:07:25]} {[%emt 00:00:07]} Nd6 {[%clk 00:07:45]} 20. Qb2 {[%clk 00:07:18]}
{[%emt 00:00:12]} Bf8 {[%clk 00:07:21]} {[%emt 00:00:30]} 21. e4 {[%clk
00:06:41]} {[%emt 00:00:42]} Bb7 {[%clk 00:07:09]} {[%emt 00:00:16]} 22. Nd4
{[%clk 00:05:29]} {[%emt 00:01:17]} Ne8 {[%clk 00:06:46]} {[%emt 00:00:29]} 23.
Rd1 {[%clk 00:04:54]} {[%emt 00:00:40]} Be7 {[%clk 00:05:41]} {[%emt 00:01:10]}
24. Ne2 {[%clk 00:03:48]} {[%emt 00:01:11]} Bf6 {[%clk 00:05:32]} {[%emt
00:00:15]} 25. d4 {[%clk 00:03:48]} {[%emt 00:00:04]} Nd6 {[%clk 00:05:14]}
{[%emt 00:00:23]} 26. d5 {[%clk 00:01:26]} {[%emt 00:02:28]} Bxc3 {[%clk
00:05:06]} {[%emt 00:00:13]} 27. Nxc3 {[%clk 00:01:30]} {[%emt 00:00:01]} Nc4
{[%clk 00:04:07]} {[%emt 00:01:04]} 28. Qb3 {[%clk 00:01:18]} {[%emt 00:00:16]}
a6 {[%clk 00:02:34]} {[%emt 00:01:38]} 29. dxe6 {[%clk 00:01:12]} {[%emt
00:00:11]} Rxd1+ {[%clk 00:02:36]} {[%emt 00:00:03]} 30. Rxd1 {[%clk 00:00:55]}
{[%emt 00:00:22]} fxe6 {[%clk 00:02:40]} 31. b5 {[%clk 00:00:44]} {[%emt
00:00:16]} Qe5 {[%clk 00:02:22]} {[%emt 00:00:23]} 32. bxa6 {[%clk 00:00:15]}
{[%emt 00:00:35]} Bxa6 {[%clk 00:02:11]} {[%emt 00:00:16]} 33. Bf1 {[%clk
00:00:19]} {[%emt 00:00:01]} Na5 {[%clk 00:01:19]} {[%emt 00:00:57]} 34. Qxb6
{[%clk 00:00:12]} {[%emt 00:00:11]} Bxf1 {[%clk 00:01:22]} {[%emt 00:00:03]} 35.
Rd8+ {[%clk 00:00:10]} {[%emt 00:00:07]} Rxd8 {[%clk 00:01:25]} {[%emt
00:00:02]} 36. Qxd8+ {[%clk 00:00:14]} Kf7 {[%clk 00:01:30]} 37. Qd7+ {[%clk
00:00:14]} {[%emt 00:00:05]} Kf6 {[%clk 00:00:56]} {[%emt 00:00:39]} 38. Qd8+
{[%clk 00:00:17]} {[%emt 00:00:01]} Kg6 {[%emt 00:00:33]} 39. Qe8+ Kh6 {[%clk
00:10:05]} {[%emt 00:00:04]} 40. Qc6 1/2-1/2